bitfinex/quotes_ETHUSD_20250220
["timestamp","ask_amount","ask_price","bid_price","bid_amount"]
[1740049634636,5.24,2748.4,2747.6,1.0377]
[1740049634637,3.63875,2748.2,2747.6,1.0377]
[1740049634853,7.27762,2748.2,2747.6,1.0377]
[1740049635011,0.8176,2748.3,2747.6,1.0377]
[1740049635323,0.8176,2748.3,2747.6,1.505433]
[1740049635530,3.63902,2748.0,2747.6,1.505433]
[1740049636021,0.8176,2748.3,2747.6,1.505433]
[1740049636022,3.63898,2748.1,2747.6,1.505433]
[1740049636332,3.63924,2747.9,2747.6,1.505433]
[1740049636639,7.27847,2747.9,2747.6,1.0377]
[1740049637339,7.27847,2747.9,2747.7,0.74318341]
[1740049637837,3.63927,2747.8,2747.7,0.74318341]
[1740049638136,3.63964,2747.6,2747.3,0.8175]
[1740049638340,3.63964,2747.6,2747.4,0.26]
[1740049638696,3.63967,2747.5,2747.4,0.26]
[1740049638901,3.63967,2747.5,2747.4,0.89975]
[1740049639305,3.63956,2747.6,2747.4,1.61269011]
[1740049640140,3.6394,2747.7,2747.4,1.61269011]
[1740049640343,3.6392,2747.9,2747.5,0.7812]
[1740049640834,7.27841,2747.9,2747.5,0.7812]
[1740049641041,7.27841,2747.9,2747.6,0.23938901]
[1740049641337,3.63928,2747.8,2747.6,0.23938901]
[1740049643906,3.63963,2747.6,2747.4,0.71294011]
[1740049644112,3.63963,2747.6,2747.5,1.0419]
[1740049644644,0.7842,2748.0,2747.5,1.0419]
[1740049644645,3.63934,2747.8,2747.5,1.0419]
[1740049645925,3.63934,2747.8,2747.6,0.05699232]
[1740049646425,7.27868,2747.8,2747.6,0.05699232]
[1740049646621,3.63934,2747.8,2747.6,0.05699232]
[1740049646949,7.27872,2747.8,2747.6,0.05699232]
[1740049647853,7.2787,2747.8,2747.6,0.05699232]
[1740049648646,3.63934,2747.8,2747.6,0.05699232]
[1740049648946,3.6394,2747.7,2747.6,0.05699232]
[1740049649120,4.4212,2747.7,2747.6,0.31699232]
[1740049650649,4.4212,2747.7,2747.6,0.05699232]
[1740049650829,5.227254,2747.7,2747.6,0.31699232]
[1740049651030,5.227254,2747.7,2747.6,0.26]
[1740049651226,5.26417033,2747.7,2747.6,0.31670428]
[1740049651542,5.227254,2747.7,2747.6,0.31670428]
[1740049652618,4.4212,2747.7,2747.6,0.31670428]
[1740049652818,4.4212,2747.7,2747.6,0.26]
[1740049663358,4.4212,2747.7,2747.6,0.31696895]
[1740049664566,4.4212,2747.7,2747.6,0.26]
[1740049666159,4.4212,2747.7,2747.6,0.31721027]
[1740049666352,5.60551787,2747.7,2747.6,0.31721027]
[1740049666536,5.60551787,2747.7,2747.6,0.26]
[1740049668132,5.56860154,2747.7,2747.6,0.26]
[1740049668967,4.4212,2747.7,2747.6,0.26]
[1740049669172,4.4212,2747.7,2747.6,0.31721027]
[1740049673071,3.6394,2747.7,2747.6,0.31721027]
[1740049673569,3.63934,2747.8,2747.6,0.31721027]
[1740049673769,5.24,2748.1,2747.6,0.26]
[1740049673970,3.63928,2747.8,2747.7,0.05722584]
[1740049674268,5.24,2748.1,2747.7,0.05722584]
[1740049674440,3.63903,2748.0,2747.7,0.05722584]
[1740049674647,3.63937,2747.8,2747.6,0.26]
[1740049674843,7.27875,2747.8,2747.6,0.26]
[1740049675370,3.63937,2747.8,2747.6,0.26]
[1740049675560,7.27875,2747.8,2747.6,0.26]
[1740049675877,3.63937,2747.8,2747.7,0.72076996]
[1740049676038,3.63937,2747.8,2747.7,0.77782455]
[1740049677368,3.63894,2748.1,2747.7,0.77782455]
[1740049677575,3.63911,2748.0,2747.8,0.7559]
[1740049677947,3.63911,2748.0,2747.9,0.05705459]
[1740049679279,3.63914,2747.9,2747.8,0.7559]
[1740049679685,3.63914,2747.9,2747.8,0.81295459]
[1740049680059,3.63914,2747.9,2747.8,0.05705459]
[1740049680583,3.6394,2747.7,2747.6,0.26]
[1740049681175,3.6394,2747.7,2747.6,1.00427111]
[1740049681471,3.63934,2747.8,2747.6,1.00427111]
[1740049681671,3.63914,2747.9,2747.6,1.18757822]
[1740049681988,3.6393,2747.8,2747.6,1.18757822]
[1740049688301,3.63903,2748.0,2747.6,1.18757822]
[1740049689090,3.6389,2748.1,2747.6,1.18757822]
[1740049689314,0.8157,2748.3,2747.6,1.18757822]
[1740049689315,0.8157,2748.3,2747.7,0.81468925]
[1740049689462,3.6387,2748.3,2747.8,0.20022675]
[1740049689793,3.63883,2748.2,2747.8,0.20022675]
[1740049691077,3.63874,2748.2,2747.9,0.0566109]
[1740049700312,0.03691633,2748.4,2747.9,0.0566109]
[1740049700313,2.4691259,2748.1,2747.9,0.0566109]
[1740049700481,3.88592259,2748.0,2747.9,0.0566109]
[1740049700679,3.63924,2747.9,2747.6,0.74427111]
[1740049701001,3.63928,2747.8,2747.6,0.74427111]
[1740049701523,3.63928,2747.8,2747.7,0.258]
[1740049702321,3.63928,2747.8,2747.6,0.74427111]
[1740049702614,3.63967,2747.5,2747.2,0.7689]
[1740049702867,3.63967,2747.5,2747.4,5.578]
[1740049704031,3.63932,2747.8,2747.4,6.3414]
[1740049704618,3.63956,2747.6,2747.4,6.3414]
[1740049704776,3.63935,2747.8,2747.4,6.3414]
[1740049705088,3.63945,2747.7,2747.4,7.05041123]
[1740049705904,3.63945,2747.7,2747.4,1.73041123]
[1740049706112,3.63945,2747.7,2747.5,0.05682297]
[1740049706903,3.63953,2747.6,2747.5,0.05682297]
[1740049716253,4.44933,2747.6,2747.5,0.31482297]
[1740049716434,4.44933,2747.6,2747.5,0.258]
[1740049716641,5.29512133,2747.6,2747.5,0.31479184]
[1740049720150,4.44933,2747.6,2747.5,0.31479184]
[1740049731235,6.14179339,2747.6,2747.5,0.05679184]
[1740049731554,4.45736,2747.2,2747.1,0.0665637]
[1740049731751,6.92263706,2747.2,2747.1,0.258]
[1740049732325,6.95955339,2747.2,2747.1,0.258]
[1740049734258,6.92263706,2747.2,2747.1,0.258]
[1740049734840,3.64006,2747.2,2747.1,0.258]
[1740049735450,4.4521,2747.4,2747.1,0.258]
[1740049735653,3.63995,2747.3,2747.1,0.258]
[1740049735971,3.63995,2747.3,2747.2,0.05601964]
[1740049743575,7.27945,2747.5,2747.2,0.05601964]
[1740049743780,3.63986,2747.4,2747.2,0.05601964]
[1740049744767,3.63993,2747.3,2747.2,0.05601964]
[1740049748443,3.67684633,2747.3,2747.2,0.05601964]
[1740049748947,3.63993,2747.3,2747.2,0.05601964]
[1740049749147,3.67684633,2747.3,2747.2,0.05601964]
[1740049754460,3.63993,2747.3,2747.2,0.05601964]
[1740049755858,3.67684633,2747.3,2747.2,0.05601964]
[1740049759098,4.45384633,2747.3,2747.2,0.05601964]
[1740049760259,4.41693,2747.3,2747.2,0.05601964]
[1740049760464,4.45384633,2747.3,2747.2,0.05601964]
[1740049761488,5.3918937,2747.3,2747.2,0.05601964]
[1740049762795,5.42881003,2747.3,2747.2,0.05601964]
[1740049763376,5.3918937,2747.3,2747.2,0.05601964]
[1740049764696,7.04787438,2747.3,2747.2,0.05601964]
[1740049764888,7.08479071,2747.3,2747.2,0.31401964]
[1740049765085,7.04787438,2747.3,2747.2,0.258]
[1740049765480,4.41693,2747.3,2747.2,0.31419859]
[1740049765880,3.63993,2747.3,2747.2,0.31419859]
[1740049768397,3.67684633,2747.3,2747.2,0.31419859]
[1740049768967,3.67684633,2747.3,2747.2,0.258]
[1740049769309,3.67684633,2747.3,2747.2,0.31419859]
[1740049771003,3.63993,2747.3,2747.2,0.31419859]
[1740049772805,3.63993,2747.3,2747.2,0.258]
[1740049777219,3.63993,2747.3,2747.2,0.31419859]
[1740049780318,5.29591068,2747.3,2747.2,0.31419859]
[1740049780510,6.75039908,2747.3,2747.2,0.31419859]
[1740049780810,6.75039908,2747.3,2747.2,0.258]
[1740049781418,6.75039908,2747.3,2747.2,0.31422194]
[1740049782900,8.40637976,2747.3,2747.2,0.05622194]
[1740049783099,14.42756343,2747.3,2747.2,0.05622194]
[1740049783493,3.64033,2747.0,2746.9,0.258]
[1740049783711,6.14309101,2747.0,2746.9,0.258]
[1740049789307,5.33322701,2747.0,2746.9,0.258]
[1740049789638,5.29631068,2747.0,2746.9,0.258]
[1740049791843,5.33322701,2747.0,2746.9,0.258]
[1740049796010,6.11872701,2747.0,2746.9,0.258]
[1740049798448,6.08181068,2747.0,2746.4,0.7963]
[1740049798649,3.64087,2746.6,2746.5,0.258]
[1740049799028,3.64087,2746.6,2746.5,0.31249855]
[1740049800154,3.64087,2746.6,2746.5,0.05449855]
[1740049800354,4.41207,2746.6,2746.5,0.05449855]
[1740049800653,4.44898633,2746.6,2746.5,0.05449855]
[1740049800853,4.44898633,2746.6,2745.9,6.1011]
[1740049800854,3.64165,2746.1,2745.9,0.7811]
[1740049801034,3.64165,2746.1,2746.0,0.258]
[1740049802058,5.24,2746.3,2746.1,0.8314]
[1740049802359,8.88127,2746.3,2746.1,0.8314]
[1740049802654,3.64139,2746.2,2746.1,0.8314]
[1740049805761,3.64152,2746.1,2746.0,0.258]
[1740049808032,3.64181,2745.9,2745.7,1.32516116]
[1740049808268,3.64181,2745.9,2745.8,0.258]
[1740049810171,3.64181,2745.9,2745.7,0.7553]
[1740049810378,5.33481701,2745.8,2745.5,0.7799]
[1740049810573,3.64219,2745.6,2745.4,0.56991731]
[1740049810738,3.67910633,2745.6,2745.5,0.258]
[1740049811078,5.33508701,2745.6,2745.5,0.05482555]
[1740049811244,3.64232,2745.5,2745.4,0.258]
[1740049811766,3.67923633,2745.5,2745.4,0.31282555]
[1740049813036,4.45533633,2745.5,2745.4,0.05482555]
[1740049813236,4.45533633,2745.5,2745.4,0.31282555]
[1740049813457,3.64258,2745.3,2745.2,1.77040181]
[1740049813775,3.67949633,2745.3,2745.2,2.02840181]
[1740049814236,3.64258,2745.3,2745.2,2.02840181]
[1740049816545,4.45998,2745.3,2745.2,2.02840181]
[1740049817150,5.95982207,2745.3,2745.2,1.77040181]
[1740049817583,8.9795384,2745.3,2745.2,1.77040181]
[1740049817897,3.64285,2745.1,2745.0,0.258]
[1740049818197,5.33574701,2745.1,2745.0,0.258]
[1740049818540,3.6433,2744.8,2744.5,1.48735947]
[1740049818778,3.6433,2744.8,2744.6,0.258]
[1740049818987,3.6433,2744.8,2744.6,0.31169409]
[1740049819476,3.6433,2744.8,2744.6,0.05369409]
[1740049819680,3.6433,2744.8,2744.7,0.258]
[1740049819878,3.6433,2744.8,2744.7,0.30994348]
[1740049820049,3.6433,2744.8,2744.7,0.258]
[1740049820649,3.6433,2744.8,2744.7,0.30994348]
[1740049821564,3.6433,2744.8,2744.7,0.258]
[1740049821763,3.68021633,2744.8,2744.7,0.30994348]
[1740049822479,10.55526732,2744.8,2744.7,0.258]
[1740049822653,3.64359,2744.6,2744.3,0.795]
[1740049823015,0.03691633,2744.5,2744.4,0.30994348]
[1740049823157,3.68059633,2744.5,2744.4,0.30994348]
[1740049823562,3.68059633,2744.5,2744.4,0.258]
[1740049823774,3.68059633,2744.5,2744.4,0.31194522]
[1740049824161,3.68059633,2744.5,2744.4,0.258]
[1740049825264,7.2872,2744.6,2744.4,0.258]
[1740049825467,3.64359,2744.6,2744.4,0.258]
[1740049825665,7.28719,2744.6,2744.4,0.258]
[1740049825865,3.64359,2744.6,2744.5,0.05399979]
[1740049826066,3.64359,2744.6,2744.4,0.258]
[1740049826835,3.64365,2744.5,2744.4,0.258]
[1740049830607,3.64386,2744.4,2744.1,1.49764916]
[1740049830911,3.64386,2744.4,2744.2,0.258]
[1740049832836,3.64365,2744.5,2744.2,0.258]
[1740049835900,0.7657,2744.7,2744.2,0.258]
[1740049836099,3.64372,2744.5,2744.2,0.258]
[1740049836928,3.68069633,2744.4,2744.2,0.258]
[1740049837491,3.68069633,2744.4,2744.3,0.258]
[1740049837829,3.64378,2744.4,2744.3,0.258]
[1740049839496,8.88378,2744.4,2744.3,0.258]
[1740049840940,8.88378,2744.4,2744.3,0.35270128]
[1740049844015,5.24,2744.4,2744.3,0.35270128]
[1740049844378,5.24,2744.4,2744.3,4.93544632]
[1740049844985,5.24,2744.4,2744.3,6.59486381]
[1740049845398,3.64288,2745.1,2744.4,0.8138]
[1740049845598,3.64301,2745.0,2744.4,4.45755]
[1740049845800,3.64301,2745.0,2744.5,0.09470908]
[1740049849842,3.64301,2745.0,2744.6,0.73109696]
[1740049850139,3.64313,2744.9,2744.7,0.7556]
[1740049850523,3.64313,2744.9,2744.8,0.09456875]
[1740049851327,3.64313,2744.9,2744.7,0.7556]
[1740049851627,3.64313,2744.9,2744.8,0.09456875]
[1740049851844,3.64313,2744.9,2744.7,0.7556]
[1740049852047,3.64313,2744.9,2744.8,0.09456875]
[1740049852192,3.64313,2744.9,2744.8,0.35256875]
[1740049852193,5.15402263,2744.9,2744.8,0.35256875]
[1740049852503,3.64408,2744.2,2744.0,0.7556]
[1740049852707,3.64408,2744.2,2744.1,0.258]
[1740049852906,3.64408,2744.2,2744.1,0.34902163]
[1740049858638,3.68099633,2744.2,2744.1,0.34902163]
[1740049858804,3.64408,2744.2,2744.1,0.34902163]
[1740049860638,3.68099633,2744.2,2744.1,0.34902163]
[1740049861644,11.05004796,2744.2,2744.1,0.34902163]
[1740049861848,11.01313163,2744.2,2744.1,0.34902163]
[1740049862147,11.01313163,2744.2,2744.1,0.258]
[1740049862448,3.64465,2743.8,2743.6,0.8222]
[1740049862740,3.64465,2743.8,2743.7,0.34949652]
[1740049864043,3.64441,2744.0,2743.7,0.34949652]
[1740049864234,9.67878,2744.2,2743.7,0.34949652]
[1740049864450,7.28876,2744.0,2743.7,0.34949652]
[1740049864651,3.64433,2744.0,2743.7,0.34949652]
[1740049864830,3.64447,2743.9,2743.7,0.34949652]
[1740049865338,9.67883,2744.2,2743.7,0.34949652]
[1740049865537,5.24,2744.2,2743.8,0.7702]
[1740049865860,8.88409,2744.2,2743.8,0.7702]
[1740049866064,8.88409,2744.2,2743.9,0.09149652]
[1740049866361,8.88407,2744.2,2743.9,0.09149652]
[1740049868644,5.24,2744.2,2743.9,0.09149652]
[1740049869044,5.24,2744.2,2743.8,0.7702]
[1740049869362,5.24,2744.2,2744.1,4.45828]
[1740049869570,5.24,2744.7,2744.3,3.64391]
[1740049869933,5.24,2744.7,2744.4,0.09194026]
[1740049870136,8.88339,2744.7,2744.5,0.258]
[1740049870428,3.64351,2744.6,2744.5,0.258]
[1740049870955,3.64351,2744.6,2744.5,0.34994026]
[1740049871544,3.68042633,2744.6,2744.5,0.34994026]
[1740049872079,3.64351,2744.6,2744.5,0.34994026]
[1740049872376,3.68042633,2744.6,2744.5,0.34994026]
[1740049872584,5.76499796,2744.6,2744.5,0.34994026]
[1740049872781,9.18637006,2744.6,2744.5,0.258]
[1740049873085,9.14945373,2744.6,2744.5,0.258]
[1740049873279,12.14945373,2744.6,2744.5,0.258]
[1740049873582,12.13665373,2744.6,2744.5,0.258]
[1740049875050,13.95528163,2744.6,2744.5,0.258]
[1740049878484,13.73314373,2744.6,2743.8,0.7728]
[1740049878783,3.64439,2744.0,2743.6,0.8216]
[1740049879081,3.6446,2743.8,2743.7,0.258]
[1740049881090,3.6446,2743.8,2743.6,0.8216]
[1740049881258,3.6446,2743.8,2743.7,0.258]
[1740049882087,5.24,2744.0,2743.3,1.30766738]
[1740049882287,3.64505,2743.5,2743.4,0.258]
[1740049882493,3.64511,2743.4,2743.3,0.53836738]
[1740049882689,3.68202633,2743.4,2743.3,0.53836738]
[1740049882853,3.64511,2743.4,2743.3,0.79636738]
[1740049883189,5.24,2743.6,2743.4,0.7885]
[1740049883403,5.24,2743.6,2743.5,3.64497]
[1740049883604,5.24,2743.6,2743.5,5.24210174]
[1740049884683,5.24,2743.6,2743.5,1.59713174]
[1740049885465,8.88484,2743.6,2743.5,1.0465]
[1740049886002,8.88484,2743.6,2743.5,1.13596165]
[1740049886999,3.64484,2743.6,2743.5,1.13596165]
[1740049887196,3.64484,2743.6,2743.5,0.34746165]
[1740049890932,3.64483,2743.7,2743.5,0.34746165]
[1740049893240,3.6448,2743.7,2743.5,0.34746165]
[1740049893413,8.88458,2743.8,2743.5,0.34746165]
[1740049893608,5.24,2743.8,2743.5,0.34746165]
[1740049894016,5.24,2743.8,2743.5,0.88267655]
[1740049894199,5.24,2743.8,2743.6,0.8057]
[1740049894544,5.24,2743.8,2743.7,0.08959407]
[1740049895808,5.24,2743.8,2743.7,3.73430407]
[1740049896001,5.24,2743.8,2743.7,0.08959407]
[1740049896214,5.24,2743.8,2743.7,0.62292197]
[1740049896414,5.24,2744.1,2743.7,4.26763197]
[1740049896730,3.64418,2744.1,2743.8,0.7749]
[1740049897036,3.64418,2744.1,2743.9,0.08939153]
[1740049897992,3.64431,2744.0,2743.9,0.08939153]
[1740049898383,3.68122633,2744.0,2743.9,0.08939153]
[1740049898720,3.68122633,2744.0,2743.7,0.72583293]
[1740049898923,3.68122633,2744.0,2743.9,0.08939153]
[1740049899231,3.64431,2744.0,2743.9,0.08939153]
[1740049899435,3.64431,2744.0,2743.7,0.72583293]
[1740049899592,3.64431,2744.0,2743.9,0.08939153]
[1740049899793,3.64431,2744.0,2743.7,0.72583293]
[1740049899992,3.64431,2744.0,2743.8,0.08939153]
[1740049900226,3.64431,2744.0,2743.7,0.72583293]
[1740049900427,3.64431,2744.0,2743.9,0.08939153]
[1740049900622,3.64431,2744.0,2743.7,0.72583293]
[1740049900830,3.64431,2744.0,2743.9,0.08939153]
[1740049901031,3.64431,2744.0,2743.7,0.72583293]
[1740049901195,3.64431,2744.0,2743.9,0.08939153]
[1740049901395,3.64431,2744.0,2743.7,0.72583293]
[1740049901607,3.64431,2744.0,2743.8,0.08939153]
[1740049901924,3.64431,2744.0,2743.7,0.72583293]
[1740049902350,3.64431,2744.0,2743.8,0.08939153]
[1740049902649,3.64431,2744.0,2743.7,0.72583293]
[1740049902818,3.64431,2744.0,2743.9,0.08939153]
[1740049903019,3.64431,2744.0,2743.7,0.72583293]
[1740049903020,4.45441,2744.0,2743.7,0.72583293]
[1740049903220,4.45441,2744.0,2743.9,0.08939153]
[1740049903865,4.45441,2744.0,2743.7,0.72583293]
[1740049904069,4.45441,2744.0,2743.9,0.08939153]
[1740049904236,4.45441,2744.0,2743.7,0.72583293]
[1740049904440,4.45441,2744.0,2743.9,0.08939153]
[1740049904623,4.45441,2744.0,2743.7,0.72583293]
[1740049904855,4.45441,2744.0,2743.9,0.08939153]
[1740049905059,4.45441,2744.0,2743.7,0.72583293]
[1740049905256,4.45441,2744.0,2743.9,0.08939153]
[1740049905462,4.45441,2744.0,2743.7,0.72583293]
[1740049905666,4.45441,2744.0,2743.9,0.08939153]
[1740049905935,4.45441,2744.0,2743.7,0.72583293]
[1740049906465,4.45441,2744.0,2743.8,0.08939153]
[1740049906824,4.45441,2744.0,2743.7,0.72583293]
[1740049907019,4.45441,2744.0,2743.9,0.08939153]
[1740049907262,4.45441,2744.0,2743.7,0.72583293]
[1740049907263,3.64458,2743.8,2743.7,0.72583293]
[1740049907740,8.88445,2743.9,2743.7,0.72583293]
[1740049908167,12.52897,2743.9,2743.7,0.72583293]
[1740049908397,8.88445,2743.9,2743.7,0.72583293]
[1740049909368,8.88445,2743.9,2743.5,0.258]
[1740049909569,8.88445,2743.9,2743.5,0.78501974]
[1740049910073,12.52898,2743.9,2743.5,0.78501974]
[1740049910371,8.88445,2743.9,2743.5,0.78501974]
[1740049911053,8.88445,2743.9,2743.6,0.73531343]
[1740049912230,5.24,2743.9,2743.6,4.38012343]
[1740049912442,5.24,2743.9,2743.8,0.8117]
[1740049912757,5.24,2743.9,2743.8,4.45628]
[1740049913791,8.88383,2744.4,2743.9,3.64442]
[1740049914092,5.24,2744.4,2744.2,0.7982]
[1740049914254,5.24,2744.4,2744.3,0.258]
[1740049914587,3.64355,2744.6,2744.3,0.258]
[1740049915901,3.64355,2744.6,2744.4,0.0889554]
[1740049916578,3.64354,2744.6,2744.4,0.0889554]
[1740049917919,5.24,2744.7,2744.6,0.8292]
[1740049918277,5.24,2744.7,2744.6,0.9180386]
[1740049919096,5.24,2744.7,2744.6,0.0888386]
[1740049919475,5.24,2744.7,2744.4,0.7751]
[1740049919697,5.24,2744.7,2744.6,0.0888386]
[1740049920305,5.24,2744.7,2744.4,0.7751]
[1740049920504,5.24,2744.7,2744.6,0.0888386]
[1740049920686,5.24,2744.7,2744.4,0.7751]
[1740049921209,5.24,2744.7,2744.5,0.0888386]
[1740049922307,5.24,2744.7,2744.5,0.56540846]
[1740049922700,12.52616,2745.0,2744.5,0.56540846]
[1740049923100,5.24,2745.0,2744.5,0.56540846]
[1740049923422,3.64281,2745.2,2744.7,4.41773]
[1740049923708,3.64281,2745.2,2744.8,0.0883091]
[1740049924094,3.64281,2745.2,2744.7,4.41773]
[1740049924291,7.28561,2745.2,2744.9,0.0883091]
[1740049924494,3.6428,2745.2,2744.7,4.41775]
[1740049924696,3.6428,2745.2,2745.0,0.0883091]
[1740049924901,3.6428,2745.2,2745.1,0.258]
[1740049925113,3.6428,2745.2,2745.1,0.3463091]
[1740049925493,3.67971633,2745.2,2745.1,0.3463091]
[1740049925685,3.6428,2745.2,2745.1,0.3463091]
[1740049926331,8.8826,2745.3,2745.1,0.3463091]
[1740049926529,3.64272,2745.2,2745.1,0.3463091]
[1740049927991,3.67963633,2745.2,2745.1,0.3463091]
[1740049928402,3.67963633,2745.2,2745.1,0.0883091]
[1740049928603,3.67963633,2745.2,2745.1,0.258]
[1740049928819,3.67963633,2745.2,2745.1,0.3463091]
[1740049929803,3.64272,2745.2,2745.1,0.3463091]
[1740049930525,3.67963633,2745.2,2745.1,0.3463091]
[1740049930926,3.67963633,2745.2,2745.1,0.3443091]
[1740049932141,3.64272,2745.2,2745.1,0.3443091]
[1740049933914,5.24,2745.3,2745.1,0.3443091]
[1740049934828,5.24,2745.7,2745.1,0.3443091]
[1740049935026,3.64237,2745.5,2745.1,0.3443091]
[1740049935230,3.64237,2745.5,2745.1,1.18643501]
[1740049935701,3.64253,2745.4,2745.1,1.18643501]
[1740049935902,3.64237,2745.5,2745.1,0.3443091]
[1740049936814,5.24,2745.7,2745.1,0.3443091]
[1740049937019,6.0021,2746.0,2745.4,3.64243]
[1740049937217,8.88169,2746.0,2745.5,0.91496727]
[1740049937429,12.52347,2746.0,2745.5,0.91496727]
[1740049938054,5.24,2746.0,2745.5,0.91496727]
[1740049938219,5.24,2746.0,2745.6,3.64217]
[1740049938415,5.24,2746.0,2745.7,0.08727389]
[1740049938959,8.88167,2746.0,2745.7,0.08727389]
[1740049939245,4.56687333,2745.9,2745.8,0.34527389]
[1740049939397,5.33327333,2745.9,2745.8,0.34527389]
[1740049939597,5.33327333,2745.9,2745.8,0.258]
[1740049940633,10.57327333,2745.9,2745.8,0.258]
[1740049940834,6.894567,2745.9,2745.8,0.258]
[1740049941037,10.57327333,2745.9,2745.8,0.258]
[1740049941233,10.536397,2745.9,2745.8,0.258]
[1740049941437,6.128167,2745.9,2744.9,0.8157]
[1740049941624,3.64267,2745.3,2745.0,0.34509494]
[1740049944538,7.28537,2745.3,2745.0,0.34509494]
[1740049944756,3.64267,2745.3,2745.0,0.34509494]
[1740049946836,7.28535,2745.3,2745.0,0.34509494]
[1740049947168,3.64267,2745.3,2745.0,0.34509494]
[1740049947947,3.64258,2745.3,2745.0,0.34509494]
[1740049948770,7.28525,2745.3,2745.0,0.34509494]
[1740049949136,3.67949633,2745.3,2745.0,0.34509494]
[1740049950066,3.64258,2745.3,2745.0,0.34509494]
[1740049951880,7.28529,2745.3,2745.0,0.34509494]
[1740049952181,3.64258,2745.3,2745.0,0.34509494]
[1740049952981,3.64285,2745.1,2745.0,0.34509494]
[1740049953179,3.64285,2745.1,2745.0,0.08709494]
[1740049953366,3.64285,2745.1,2745.0,0.34509494]
[1740049957292,3.64285,2745.1,2745.0,0.08709494]
[1740049957501,3.64285,2745.1,2745.0,0.34509494]
[1740049964692,3.64285,2745.1,2745.0,0.08709494]
[1740049964895,3.64285,2745.1,2745.0,0.34509494]
[1740049965189,3.64285,2745.1,2745.0,0.258]
[1740049965384,3.64285,2745.1,2745.0,0.34518053]
[1740049966777,4.51196633,2745.1,2745.0,0.34518053]
[1740049967098,7.63871945,2745.1,2745.0,0.34518053]
[1740049968185,7.63871945,2745.1,2745.0,0.08718053]
[1740049968387,7.63871945,2745.1,2745.0,0.258]
[1740049969304,3.64344,2744.7,2744.4,1.57551995]
[1740049969611,3.64344,2744.7,2744.5,0.3454918]
[1740049970322,3.68035633,2744.7,2744.5,0.3454918]
[1740049970485,3.64351,2744.6,2744.5,0.0874918]
[1740049970684,3.64351,2744.6,2744.5,0.3454918]
[1740049972118,4.47564,2744.7,2744.5,0.3454918]
[1740049972417,8.11915,2744.7,2744.5,0.3454918]
[1740049972606,3.64351,2744.6,2744.5,0.3454918]
[1740049978238,4.50882633,2744.6,2744.5,0.0874918]
[1740049978438,3.64365,2744.5,2744.4,0.83912091]
[1740049979942,3.68056633,2744.5,2744.4,0.83912091]
[1740049980338,3.68056633,2744.5,2744.4,0.92690847]
[1740049980519,3.64365,2744.5,2744.4,0.92690847]
[1740049981039,4.49212233,2744.5,2744.4,0.92690847]
[1740049981239,5.28332233,2744.5,2744.4,1.09712091]
[1740049981546,8.70541498,2744.5,2744.4,1.09712091]
[1740049981751,8.66849865,2744.5,2744.4,1.09712091]
[1740049982048,13.90849865,2744.5,2744.4,1.09712091]
[1740049983747,13.90849865,2744.5,2744.4,0.83912091]
[1740049984126,3.64391,2744.3,2743.7,0.8256]
[1740049984335,3.64444,2743.9,2743.8,0.258]
[1740049984533,3.64444,2743.9,2743.8,0.34637139]
[1740049989587,3.68135633,2743.9,2743.8,0.34637139]
[1740049990558,5.01796296,2743.9,2743.8,0.08837139]
[1740049990876,5.58431561,2743.9,2743.3,8.185]
[1740049991050,3.64511,2743.4,2743.3,8.185]
[1740049991377,3.64537,2743.2,2743.1,0.005]
[1740049991574,3.64537,2743.2,2743.1,0.263]
[1740049996202,3.68228633,2743.2,2743.1,0.263]
[1740049996411,3.64537,2743.2,2743.1,0.263]
[1740049996874,3.68228633,2743.2,2743.1,0.263]
[1740049997494,3.64537,2743.2,2743.1,0.263]
[1740050002881,8.88537,2743.2,2743.1,0.263]
[1740050004293,5.24,2743.2,2743.1,0.263]
[1740050004490,9.70537,2743.2,2743.1,0.005]
[1740050004702,5.24,2743.2,2743.1,0.005]
[1740050005507,8.88537,2743.2,2743.1,0.005]
[1740050006303,5.24,2743.2,2743.1,0.005]
[1740050006610,5.24,2743.2,2743.1,0.802]
[1740050007012,5.24,2743.2,2743.1,1.33083668]
[1740050007904,5.24,2743.2,2743.1,0.88606768]
[1740050008785,3.64525,2743.3,2743.1,0.88606768]
[1740050009420,3.64518,2743.4,2743.1,0.88606768]
[1740050010524,7.29041,2743.4,2743.1,0.88606768]
[1740050010937,3.64518,2743.4,2743.1,0.88606768]
[1740050011121,7.29041,2743.4,2743.1,0.88606768]
[1740050011314,3.64518,2743.4,2743.1,0.88606768]
[1740050011928,7.29038,2743.4,2743.1,0.88606768]
[1740050012128,3.64518,2743.4,2743.1,0.88606768]
[1740050012294,3.64518,2743.4,2743.2,0.73269537]
[1740050012489,7.29038,2743.4,2743.2,0.73269537]
[1740050013003,3.64518,2743.4,2743.3,0.08406768]
[1740050013404,3.68209633,2743.4,2743.3,0.08406768]
[1740050013723,3.64532,2743.3,2743.1,0.802]
[1740050013928,3.64532,2743.3,2743.1,1.51688528]
[1740050014998,3.64532,2743.3,2743.1,0.802]
[1740050015622,3.64537,2743.2,2743.1,0.802]
[1740050016510,3.64537,2743.2,2743.1,0.005]
[1740050017036,3.64537,2743.2,2743.1,0.263]
[1740050017542,3.68228633,2743.2,2743.1,0.263]
[1740050017734,3.64537,2743.2,2743.1,0.263]
[1740050018044,3.64537,2743.2,2743.1,0.005]
[1740050018199,4.37813063,2743.2,2743.1,0.263]
[1740050019347,4.41504696,2743.2,2743.1,0.263]
[1740050019727,4.41504696,2743.2,2743.1,0.34711443]
[1740050020121,4.41504696,2743.2,2743.1,0.08911443]
[1740050020316,4.41504696,2743.2,2743.1,0.34711443]
[1740050020543,4.37813063,2743.2,2743.1,0.263]
[1740050020751,9.65504696,2743.2,2743.1,0.263]
[1740050020939,9.61813063,2743.2,2743.1,0.263]
[1740050022656,9.61813063,2743.2,2743.1,0.34711443]